bitfinex-derivatives/quotes_ETHF0:USTF0_20260305
["timestamp","ask_amount","ask_price","bid_price","bid_amount"]
[1772690498092,0.56520156,2116.7,2115.9,0.47480562]
[1772690502499,0.56520156,2116.7,2115.9,0.00359767]
[1772690503695,0.56520156,2116.0,2114.9,0.47667258]
[1772690503899,0.56520156,2116.0,2115.3,0.47667258]
[1772690504298,0.56520156,2116.2,2115.3,0.47667258]
[1772690504607,0.57032361,2116.2,2115.3,0.48252607]
[1772690508102,0.57032361,2116.2,2115.5,0.48800194]
[1772690508602,0.00512205,2116.2,2115.5,0.48800194]
[1772690509499,0.58926907,2116.5,2115.7,0.4897738]
[1772690510503,0.59269116,2116.5,2115.7,0.4897738]
[1772690511204,0.58926907,2116.3,2115.7,0.4897738]
[1772690511504,0.58926907,2116.3,2115.3,0.00585349]
[1772690511505,0.58926907,2116.3,2115.4,0.48612564]
[1772690513005,0.58926907,2116.4,2115.6,0.48589622]
[1772690514402,0.58926907,2116.4,2115.8,0.48589622]
[1772690516606,0.59269116,2116.5,2115.8,0.48589622]
[1772690517104,0.59269116,2116.5,2116.0,0.48689895]
[1772690517105,0.00342209,2116.5,2116.0,0.48689895]
[1772690518605,0.58926907,2116.8,2116.0,0.48689895]
[1772690519106,0.58926907,2116.8,2115.6,0.58716233]
[1772690519309,0.58926907,2116.2,2115.3,0.53781005]
[1772690519498,0.58926907,2116.0,2115.3,0.53781005]
[1772690519697,0.00387006,2116.0,2115.5,0.53195656]
[1772690520507,0.58926907,2116.3,2115.5,0.53195656]
[1772690520703,0.58926907,2116.7,2115.5,0.53195656]
[1772690520908,0.58926907,2116.5,2115.5,0.53195656]
[1772690521406,0.5938362,2116.5,2115.5,0.53195656]
[1772690521803,0.58926907,2116.8,2115.8,0.54328111]
[1772690522105,2.64819231,2117.8,2115.8,0.54328111]
[1772690522106,0.58926907,2116.7,2115.8,0.54328111]
[1772690522811,0.59442365,2116.7,2115.8,0.54328111]
[1772690524906,0.59442365,2116.7,2115.3,0.00585349]
[1772690525108,0.58926907,2115.8,2114.3,0.58716233]
[1772690525314,0.58926907,2115.6,2114.6,0.58716233]
[1772690525506,3.8846315,2116.1,2114.6,0.58716233]
[1772690525700,0.58926907,2116.0,2114.6,0.58716233]
[1772690525909,0.58926907,2115.8,2114.6,0.58716233]
[1772690526608,0.58926907,2116.2,2114.6,0.58716233]
[1772690526804,0.58926907,2116.0,2114.6,0.58716233]
[1772690527107,0.58926907,2116.5,2114.6,0.5914476]
[1772690527609,0.59442365,2116.7,2115.1,0.58716233]
[1772690527805,0.59442365,2116.7,2115.3,0.58716233]
[1772690528314,0.00515458,2116.7,2115.3,0.58716233]
[1772690528515,0.00515458,2116.7,2115.3,6.40044233]
[1772690528816,0.58926907,2117.1,2115.4,0.58716233]
[1772690529009,0.58926907,2117.6,2115.6,0.58716233]
[1772690529210,0.58926907,2117.6,2115.8,0.58716233]
[1772690529412,0.58926907,2117.6,2116.1,0.58716233]
[1772690529710,0.59289725,2117.6,2116.3,0.58716233]
[1772690530411,0.00362818,2117.6,2116.3,0.58716233]
[1772690530610,0.58926907,2118.0,2116.3,0.58716233]
[1772690530812,0.58926907,2118.0,2116.2,6.41]
[1772690530813,0.58926907,2118.5,2116.6,0.58716233]
[1772690531018,0.58926907,2118.3,2116.6,0.58716233]
[1772690531514,0.59388879,2118.3,2116.6,0.58716233]
[1772690532214,0.59388879,2118.3,2116.8,0.58716233]
[1772690532815,0.59388879,2118.3,2117.0,0.58716233]
[1772690534710,0.00461972,2118.3,2117.0,0.58716233]
[1772690535016,0.58926907,2118.7,2117.2,0.58716233]
[1772690535217,0.58926907,2118.9,2117.4,0.58716233]
[1772690536218,0.59300036,2118.9,2117.4,0.58716233]
[1772690539327,0.00373129,2118.9,2117.6,0.58726655]
[1772690539623,0.00373129,2118.9,2117.8,0.58726655]
[1772690539825,0.59402867,2119.1,2117.8,0.58726655]
[1772690540030,0.59402867,2119.1,2117.7,11.55964988]
[1772690540031,0.59402867,2120.3,2118.2,0.58726655]
[1772690540223,0.59402867,2120.3,2118.4,0.58726655]
[1772690540426,0.59402867,2120.3,2118.7,0.58726655]
[1772690540923,0.59859007,2120.3,2118.7,0.58726655]
[1772690541129,0.59859007,2120.3,2118.9,0.58726655]
[1772690542528,0.59402867,2120.8,2119.2,0.58726655]
[1772690542824,0.59402867,2120.8,2119.5,0.58726655]
[1772690543530,0.59951253,2120.8,2119.7,0.58726655]
[1772690548328,0.59951253,2120.8,2119.9,0.57784325]
[1772690548534,0.58408556,2121.2,2120.1,0.57784325]
[1772690548727,0.58408556,2122.2,2120.5,0.57784325]
[1772690549328,0.58408556,2122.2,2119.9,6.461]
[1772690549528,0.58408556,2122.2,2120.0,0.57784325]
[1772690549730,0.58762385,2122.2,2120.0,0.57784325]
[1772690549932,0.58762385,2122.2,2120.2,0.57784325]
[1772690550831,0.58762385,2122.2,2120.6,0.57784325]
[1772690553031,0.58762385,2122.2,2119.9,0.57784325]
[1772690554531,0.58408556,2121.8,2119.9,0.57784325]
[1772690556036,0.58408556,2121.7,2119.9,0.57784325]
[1772690556242,0.58408556,2121.7,2119.8,0.2358]
[1772690556635,0.58408556,2121.7,2119.8,0.81364325]
[1772690557240,0.58408556,2121.7,2119.9,0.57784325]
[1772690559139,0.58408556,2121.5,2119.9,0.57784325]
[1772690562338,0.58408556,2121.3,2119.9,0.57784325]
[1772690563341,0.58408556,2121.3,2119.7,0.57784325]
[1772690563741,0.58408556,2121.1,2119.7,0.57784325]
[1772690564540,0.58408556,2120.9,2119.7,0.57784325]
[1772690564935,0.58408556,2120.9,2119.5,0.00470714]
[1772690565145,0.58408556,2120.7,2119.5,0.00470714]
[1772690565345,0.58757478,2120.7,2119.5,0.00470714]
[1772690566240,0.58757478,2120.7,2119.6,0.57784325]
[1772690566449,0.58408556,2121.0,2120.2,0.57784325]
[1772690567543,0.00539548,2121.0,2120.4,0.57784325]
[1772690568246,0.58408556,2121.2,2120.4,0.57784325]
[1772690568546,0.58408556,2121.5,2120.4,0.57784325]
[1772690568746,6.15607178,2121.4,2120.4,0.57784325]
[1772690568946,0.59038032,2121.4,2120.4,0.57784325]
[1772690569143,5.57568087,2121.3,2120.4,0.57784325]
[1772690569343,0.00579759,2121.3,2120.4,0.57784325]
[1772690570047,0.59038032,2121.2,2120.4,0.57784325]
[1772690571547,0.00579759,2121.3,2120.4,0.57784325]
[1772690572249,5.58837031,2121.3,2120.4,0.57784325]
[1772690572547,0.00579759,2121.3,2120.4,0.57784325]
[1772690572744,5.58832099,2121.3,2120.4,0.57784325]
[1772690572944,6.17870131,2121.3,2120.4,0.57784325]
[1772690573144,0.59617791,2121.3,2120.4,0.57784325]
[1772690574245,5.58145904,2121.2,2120.4,0.57784325]
[1772690574445,0.59038032,2121.1,2120.1,0.53855159]
[1772690574647,0.59038032,2120.9,2120.1,0.53855159]
[1772690574843,3.8846315,2121.1,2120.1,0.53855159]
[1772690574844,0.59038032,2120.7,2120.1,0.53855159]
[1772690575046,0.59038032,2120.7,2119.7,0.23581]
[1772690575241,0.59038032,2120.7,2119.8,0.53855159]
[1772690575446,0.59038032,2120.5,2119.6,0.53855159]
[1772690577248,0.59038032,2120.3,2119.5,0.00470714]
[1772690578655,0.59038032,2120.1,2119.5,0.00470714]
[1772690578951,3.8846315,2120.5,2119.2,0.53855159]
[1772690578952,0.59038032,2119.9,2119.2,0.53855159]
[1772690579154,0.59038032,2120.2,2119.2,0.53855159]
[1772690579352,6.16307466,2120.1,2119.2,0.53855159]
[1772690579554,0.59038032,2120.1,2119.2,0.53855159]
[1772690580054,0.59038032,2120.1,2119.2,0.54186944]
[1772690581253,0.59038032,2119.9,2119.2,0.54186944]
[1772690585257,0.59038032,2119.9,2119.0,0.53855159]
[1772690586351,0.59038032,2119.9,2119.0,0.54449245]
[1772690588862,0.59038032,2119.9,2119.0,0.00594086]
[1772690589158,0.59038032,2119.7,2119.0,0.00594086]
[1772690589461,0.59411284,2119.7,2119.0,0.00594086]
[1772690590353,0.59411284,2119.7,2119.1,0.53855159]
[1772690601468,9.01801273,2120.4,2119.2,0.55021742]
[1772690601669,0.55601273,2121.0,2120.0,0.55021742]
[1772690601873,0.55601273,2120.8,2120.0,0.55021742]
[1772690602268,0.55601273,2121.0,2120.2,0.55021742]
[1772690602471,0.56020494,2121.0,2120.2,0.55021742]
[1772690603068,0.00419221,2121.0,2120.2,0.55021742]
[1772690603269,0.00419221,2121.0,2120.4,0.55021742]
[1772690604271,0.00419221,2121.0,2120.6,0.55021742]
[1772690604472,0.55601273,2121.4,2120.6,0.55546924]
[1772690605173,0.55601273,2121.8,2120.6,0.55546924]
[1772690605368,0.55601273,2121.6,2120.6,0.55546924]
[1772690605573,0.56139309,2121.6,2120.6,0.55546924]
[1772690607072,0.56139309,2121.6,2120.8,0.58139315]
[1772690607271,0.56139309,2121.6,2120.6,0.58664497]
[1772690608875,0.56139309,2121.6,2120.7,0.58139315]
[1772690609075,0.00538036,2121.6,2120.7,0.58139315]
[1772690609572,0.00538036,2121.6,2120.8,0.2357]
[1772690609769,0.54668778,2121.5,2120.7,0.58139315]
[1772690611077,0.54668778,2121.5,2120.6,0.58664497]
[1772690611468,0.54668778,2121.5,2120.6,0.00525182]
[1772690611673,0.54668778,2120.8,2119.3,0.58139315]
[1772690611876,0.54668778,2120.8,2119.5,0.58139315]
[1772690612174,0.54668778,2120.8,2119.9,0.58139315]
[1772690612379,0.54668778,2121.2,2120.1,0.58139315]
[1772690612677,0.54668778,2121.5,2120.3,0.58139315]
[1772690615674,0.54668778,2121.5,2120.5,0.58139315]
[1772690622281,0.55206814,2121.6,2120.7,0.58139315]
[1772690623380,0.00538036,2121.6,2120.7,0.58139315]
[1772690624275,0.54668778,2122.1,2120.9,0.58139315]
[1772690624479,14.1936803,2122.9,2120.9,0.58139315]
[1772690624480,0.54668778,2122.3,2120.9,0.58139315]
[1772690624677,0.54668778,2122.3,2121.2,0.58139315]
[1772690625074,0.54668778,2122.3,2121.3,0.58139315]
[1772690625277,0.55047441,2122.3,2121.3,0.58139315]
[1772690626979,0.55047441,2122.3,2121.4,0.23563]
[1772690627183,0.55047441,2122.3,2121.5,0.58139315]
[1772690628782,0.00378663,2122.3,2121.5,0.58139315]
[1772690629284,0.58773914,2122.3,2121.5,0.58139315]
[1772690629685,0.00378663,2122.3,2121.5,0.58139315]
[1772690629883,0.58773914,2122.3,2121.5,0.58139315]
[1772690632284,0.00378663,2122.3,2121.7,0.59546615]
[1772690632487,0.00378663,2122.3,2121.7,0.59972525]
[1772690633385,0.58395251,2122.9,2121.9,0.59546615]
[1772690633692,0.58395251,2122.7,2121.9,0.59546615]
[1772690634188,0.58395251,2122.9,2121.9,0.59546615]
[1772690634386,0.58784467,2122.9,2122.1,0.59546615]
[1772690634587,0.00389216,2122.9,2122.1,0.59546615]
[1772690635188,0.00389216,2122.9,2122.3,0.59546615]
[1772690637990,0.58395251,2123.3,2122.3,0.59546615]
[1772690638484,0.58395251,2123.6,2122.5,0.59546615]
[1772690638891,0.58925882,2123.6,2122.3,0.59546615]
[1772690639085,0.58395251,2123.4,2122.3,0.59546615]
[1772690639698,0.58925882,2123.6,2122.8,0.59546615]
[1772690639893,0.58925882,2123.6,2122.6,0.59546615]
[1772690640986,0.58395251,2123.2,2121.8,0.59546615]
[1772690641690,0.58395251,2122.8,2121.8,0.59546615]
[1772690642294,0.58395251,2123.0,2122.0,0.59546615]
[1772690642883,0.58395251,2123.4,2122.2,0.59546615]
[1772690643093,0.58395251,2123.2,2122.2,0.59546615]
[1772690647197,0.58395251,2123.0,2122.2,0.59546615]
[1772690648497,0.58395251,2123.3,2122.4,0.59546615]
[1772690648703,0.58395251,2123.3,2122.6,0.59546615]
[1772690649004,0.58395251,2123.3,2122.0,0.23556]
[1772690649198,0.58395251,2123.3,2122.1,0.59546615]
[1772690650200,0.58395251,2123.1,2122.1,0.59546615]
[1772690651298,0.58395251,2122.9,2121.8,0.59546615]
[1772690651497,3.86843598,2123.1,2121.8,0.59546615]
[1772690651498,0.58395251,2122.7,2121.8,0.59546615]
[1772690652200,0.58395251,2122.5,2121.7,0.0042591]
[1772690652401,0.58395251,2122.5,2120.6,0.59546615]
[1772690652402,0.58395251,2122.3,2120.6,0.59546615]
[1772690652591,0.58395251,2122.1,2120.8,0.59546615]
[1772690652795,0.58395251,2121.9,2121.1,0.23566]
[1772690652990,0.58395251,2121.9,2121.2,0.59546615]
[1772690653398,0.58747938,2121.9,2121.2,0.60112987]
[1772690655003,0.00352687,2121.9,2121.2,0.60112987]
[1772690655406,0.58395251,2122.3,2121.4,0.59546615]
[1772690656103,0.58395251,2122.3,2121.5,0.23562]
[1772690656401,0.58395251,2121.9,2120.5,0.59546615]
[1772690656602,0.58395251,2121.7,2120.5,0.59546615]
[1772690656905,0.58395251,2121.5,2120.5,0.59546615]
[1772690657309,0.58395251,2121.5,2120.5,0.60034462]
[1772690658005,0.58395251,2121.5,2120.5,0.00487847]
[1772690658506,0.58395251,2121.3,2120.1,0.59546615]
[1772690659107,0.57769295,2121.1,2120.1,0.59546615]
[1772690659308,0.57769295,2121.1,2120.1,0.60115012]
[1772690661713,0.57769295,2121.0,2120.1,0.60115012]
[1772690662014,0.57769295,2121.0,2120.1,0.00568397]
[1772690662915,0.57769295,2121.0,2120.2,0.5838217]
[1772690666115,0.57769295,2121.2,2120.2,0.5838217]
[1772690669017,0.51395398,2121.8,2120.3,0.54728458]
[1772690669217,0.51395398,2121.8,2120.5,0.54728458]
[1772690672825,0.51395398,2121.8,2120.1,0.00568397]
[1772690672826,0.51395398,2121.8,2120.7,0.54728458]
[1772690674921,0.51395398,2121.8,2120.2,0.54728458]
[1772690675223,0.51395398,2121.6,2120.2,0.54728458]
[1772690676924,0.51395398,2121.4,2120.2,0.54728458]
[1772690680121,0.51395398,2121.4,2120.4,0.54728458]
[1772690680321,0.51395398,2121.6,2120.6,0.54728458]
[1772690680822,0.51395398,2121.6,2120.8,0.54728458]
[1772690681019,0.51395398,2121.8,2120.9,0.23568]
[1772690681219,0.51395398,2122.0,2121.0,0.54728458]
[1772690683031,0.51395398,2122.0,2120.9,0.23568]
[1772690683032,8.3175495,2122.3,2121.2,0.54728458]
[1772690683224,0.51395398,2122.2,2121.2,0.54728458]
[1772690683528,0.0035495,2122.3,2121.4,0.54728458]
[1772690684327,0.51750348,2122.3,2121.4,0.54728458]
[1772690686128,0.51395398,2122.2,2121.4,0.54728458]
[1772690689433,0.0035495,2122.3,2121.6,0.53946447]
[1772690689635,0.26030479,2122.4,2121.6,0.54317407]
[1772690690525,0.26642968,2122.4,2121.6,0.54317407]
[1772690691230,0.00612489,2122.4,2121.6,0.54317407]
[1772690691533,0.55809556,2122.9,2121.8,0.53946447]
[1772690692735,0.56341545,2122.9,2121.8,0.53946447]
[1772690693132,0.56341545,2122.9,2122.0,0.53946447]
[1772690693133,0.00531989,2122.9,2122.0,0.53946447]
[1772690695932,0.00531989,2122.9,2122.2,0.53946447]
[1772690698835,10.69609556,2123.6,2122.6,0.53946447]
[1772690699031,0.55809556,2123.6,2122.6,0.53946447]
[1772690699832,0.56140985,2123.6,2122.6,0.53946447]
[1772690700230,0.56140985,2123.6,2122.8,0.53946447]
[1772690701932,0.56140985,2123.6,2122.3,0.53946447]
[1772690702542,0.55809556,2123.4,2122.3,0.53946447]
[1772690702738,0.55809556,2123.2,2122.3,0.53946447]
[1772690703036,0.55809556,2123.2,2121.8,0.53946447]
[1772690707246,0.55809556,2123.2,2122.0,0.53946447]
[1772690709847,0.55809556,2123.1,2122.0,0.53946447]
[1772690710348,0.55809556,2122.9,2122.0,0.53946447]
[1772690713851,0.55809556,2122.7,2122.0,0.53946447]
[1772690714442,0.55809556,2123.1,2122.0,0.53946447]
[1772690714648,0.55809556,2122.9,2122.0,0.53946447]
[1772690716252,6.13604013,2122.8,2122.0,0.53946447]
[1772690716453,0.55809556,2122.8,2122.0,0.53946447]
[1772690719751,3.86843598,2123.0,2122.0,0.53946447]
[1772690719752,0.53896393,2122.6,2122.0,0.53946447]
[1772690721158,0.53896393,2122.6,2121.8,0.79557647]
[1772690721358,0.53896393,2122.6,2121.9,0.55999647]
[1772690722061,0.53896393,2122.6,2121.7,0.55999647]
[1772690722363,0.53896393,2122.4,2121.7,0.55999647]
[1772690725765,0.53896393,2122.4,2121.6,0.0037096]
[1772690726263,0.53896393,2122.4,2121.3,0.23564]
[1772690726264,0.53896393,2122.2,2120.9,0.55999647]
[1772690726464,0.53896393,2122.0,2120.9,0.55999647]
[1772690727265,0.00524917,2122.0,2121.1,0.55932893]
[1772690727871,0.57718497,2122.0,2121.1,0.55932893]
[1772690730871,0.57718497,2122.0,2121.3,0.55932893]
[1772690733276,0.00524917,2122.0,2121.3,0.55932893]
[1772690737069,0.00524917,2122.0,2121.5,0.55932893]
[1772690738679,0.57718497,2122.0,2121.5,0.55932893]
[1772690740582,0.57718497,2122.0,2121.0,0.55932893]
[1772690741284,0.5719358,2121.8,2121.0,0.55932893]
[1772690741885,0.5719358,2121.6,2120.9,0.00549321]
[1772690742383,0.5719358,2121.6,2120.9,0.56482214]
[1772690743279,0.5719358,2121.6,2120.9,0.00549321]
[1772690744183,0.5719358,2121.6,2120.9,0.56482214]
[1772690750487,0.56838484,2121.5,2120.9,0.56482214]
[1772690751389,0.56838484,2121.8,2120.9,0.56482214]
[1772690751587,0.56838484,2121.6,2120.9,0.56482214]
[1772690755394,8.76638484,2121.8,2120.9,0.56482214]
[1772690755590,5.61111508,2121.7,2120.9,0.56482214]
[1772690755989,8.76638484,2121.8,2120.9,0.56482214]
[1772690759492,8.76638484,2121.8,2121.1,0.59170184]
[1772690760690,8.198,2121.8,2121.1,0.59170184]
[1772690760896,0.56838484,2121.7,2121.1,0.59170184]
[1772690761392,0.56838484,2121.7,2120.9,0.00549321]
[1772690761589,0.56838484,2121.5,2120.9,0.00549321]
[1772690761787,0.56838484,2121.3,2120.7,0.59170184]
[1772690761990,0.56838484,2121.2,2120.1,0.59170184]
[1772690762796,0.56838484,2121.2,2120.1,0.59619073]
[1772690762999,0.56838484,2120.7,2119.6,0.59170184]
[1772690763297,0.56838484,2120.5,2119.6,0.59170184]
[1772690763493,5.61602624,2120.4,2119.1,0.59170184]
[1772690763691,0.56838484,2120.3,2119.1,0.59170184]
[1772690764097,0.5728376,2120.3,2119.3,0.59170184]
[1772690764700,0.5728376,2120.3,2119.5,0.59170184]
[1772690776303,0.5728376,2120.3,2119.2,0.59170184]
[1772690776707,0.56838484,2120.1,2119.1,0.004149]
[1772690776903,0.56838484,2119.9,2118.7,0.59170184]
[1772690777105,0.56838484,2119.7,2118.7,0.59170184]
[1772690777404,0.56838484,2119.5,2118.7,0.59170184]
[1772690777806,0.56838484,2119.5,2118.7,0.59519486]
[1772690780008,0.56838484,2119.5,2118.7,0.00349302]
[1772690780207,0.56838484,2119.5,2118.7,0.57520213]
[1772690781004,0.56838484,2119.5,2118.7,0.00349302]
[1772690781509,0.56838484,2119.5,2118.0,0.57170911]
[1772690781902,0.56838484,2119.5,2118.2,0.57170911]
[1772690782202,0.56838484,2119.5,2118.1,0.80770911]
[1772690782408,0.56838484,2119.5,2118.2,0.57170911]
[1772690784205,0.56838484,2119.5,2118.1,0.57694537]
[1772690784412,0.58495799,2119.3,2118.1,0.57694537]
[1772690792224,0.59266197,2119.1,2118.1,0.57694537]
[1772690793421,0.59266197,2119.1,2118.1,0.00523626]
[1772690795125,5.59604236,2119.0,2118.1,0.00523626]
[1772690795326,0.59266197,2118.9,2118.1,0.00523626]
[1772690795627,0.59266197,2118.7,2117.8,0.55266032]
[1772690795820,0.59266197,2118.5,2117.8,0.55266032]
[1772690796627,0.59837989,2118.5,2117.8,0.55625119]
[1772690797230,0.59837989,2118.5,2117.8,0.00359087]
[1772690797424,0.59837989,2118.5,2117.8,0.55625119]
[1772690800934,0.59266197,2118.8,2118.0,0.55266032]
[1772690801835,0.59621644,2118.8,2118.0,0.55266032]
[1772690802333,0.59621644,2118.8,2118.2,0.55266032]
[1772690802530,0.59621644,2118.8,2117.9,0.55266032]
[1772690802730,0.59621644,2118.8,2117.8,0.00359087]
[1772690802731,0.59266197,2118.6,2117.8,0.55625119]
[1772690805137,0.59266197,2118.6,2117.8,0.00359087]
[1772690805332,0.59266197,2118.4,2117.8,0.00359087]
[1772690805637,0.59266197,2118.3,2117.8,0.00359087]
[1772690806032,0.59266197,2118.3,2117.6,0.78870032]
[1772690806233,0.59266197,2118.3,2117.6,0.23604]
[1772690806637,0.59266197,2118.3,2117.5,0.55266032]
[1772690807135,0.59266197,2118.1,2117.5,0.55600951]
[1772690807335,0.59266197,2118.1,2117.5,0.00334919]
[1772690808132,0.59266197,2118.1,2117.2,0.55266032]
[1772690808339,0.59266197,2117.9,2116.8,0.55266032]
[1772690808543,0.59266197,2117.7,2116.8,0.55266032]
[1772690808837,0.54279968,2117.6,2116.8,0.55266032]
[1772690809042,0.54279968,2117.6,2115.4,18.54696699]
[1772690809043,0.54279968,2117.4,2116.4,0.57658719]
[1772690809233,0.54279968,2117.2,2116.4,0.58066601]
[1772690809539,0.54640704,2117.2,2116.4,0.58066601]
[1772690814535,0.54640704,2117.2,2116.6,0.57658719]
[1772690814742,0.00360736,2117.2,2116.6,0.57658719]
[1772690815639,0.54279968,2117.5,2116.6,0.57658719]
[1772690816038,0.54279968,2117.6,2116.8,0.57658719]
[1772690816739,0.5479657,2117.6,2116.8,0.57658719]
[1772690817548,0.5479657,2117.6,2116.5,0.57658719]
[1772690818548,0.54279968,2117.4,2116.5,0.57658719]
[1772690818946,0.54279968,2117.3,2116.5,0.57658719]
[1772690820547,0.54279968,2117.3,2116.6,0.57658719]
[1772690821844,0.54279968,2117.3,2116.4,0.58066601]
[1772690823147,0.54279968,2117.3,2116.4,0.00407882]
[1772690826148,0.54279968,2117.1,2116.0,0.57658719]
[1772690827151,0.54279968,2117.1,2116.0,0.58195034]
[1772690831252,0.54279968,2116.9,2116.0,0.58195034]
[1772690831452,0.54279968,2116.7,2116.0,0.58195034]
[1772690833756,8.66379968,2116.8,2116.0,0.58195034]
[1772690834159,0.54279968,2116.8,2116.0,0.58195034]
[1772690834358,0.54279968,2117.1,2116.2,0.57658719]
[1772690834554,8.117,2117.2,2116.6,0.57658719]
[1772690834755,8.6649657,2117.6,2116.6,0.57658719]
[1772690835058,0.54279968,2117.5,2116.6,0.57658719]
[1772690837457,8.12216602,2117.6,2116.6,0.57658719]
[1772690837659,5.63796306,2117.5,2116.6,0.57658719]
[1772690837956,6.18076274,2117.5,2116.6,0.57658719]
[1772690838157,0.54279968,2117.5,2116.6,0.57658719]
[1772690838362,8.12216602,2117.6,2116.8,0.57658719]
[1772690838662,0.00516602,2117.6,2117.0,0.56373275]
[1772690840563,0.57908304,2117.6,2117.0,0.56373275]
[1772690841264,0.00516602,2117.6,2117.0,0.56373275]
[1772690841959,6.15539855,2117.9,2117.0,0.56373275]
[1772690842160,0.57391702,2117.9,2117.0,0.56373275]
[1772690842356,0.57391702,2118.1,2117.2,0.56373275]
[1772690843063,0.57946139,2118.1,2117.2,0.56373275]
[1772690843965,0.57391702,2117.9,2117.2,0.56373275]
[1772690845263,0.00554437,2118.1,2117.2,0.56373275]
[1772690845264,0.57946139,2118.1,2117.2,0.56373275]
[1772690847470,0.53143356,2117.9,2116.6,0.54588138]
[1772690854565,0.53143356,2117.8,2116.6,0.54588138]
[1772690855277,0.53143356,2117.6,2116.6,0.54588138]
[1772690855664,0.53143356,2117.4,2116.6,0.54588138]
[1772690856959,0.53143356,2117.8,2116.8,0.54588138]
[1772690857161,0.53143356,2117.7,2116.8,0.54588138]
[1772690858467,0.53143356,2117.9,2117.0,0.54588138]
[1772690860372,0.53143356,2117.7,2117.0,0.54588138]
[1772690861269,12.02828776,2118.1,2117.1,0.23611]
[1772690861475,0.53143356,2117.9,2117.2,0.54588138]
[1772690861674,0.53143356,2117.9,2116.7,0.54588138]
[1772690861874,0.53143356,2117.7,2116.7,0.54588138]
[1772690862569,0.53143356,2117.7,2116.8,0.23614]
[1772690862775,0.53143356,2117.7,2116.9,0.54588138]
[1772690863270,0.53143356,2117.7,2117.1,0.54588138]
[1772690863976,0.53143356,2118.0,2117.1,0.54588138]
[1772690864271,6.1163008,2117.9,2117.1,0.54588138]
[1772690864471,0.53143356,2117.9,2117.1,0.54588138]
[1772690864676,0.53143356,2117.9,2117.3,0.54588138]
[1772690865579,0.53143356,2117.9,2117.2,0.2361]
[1772690865780,0.53143356,2117.9,2117.3,0.54588138]
[1772690866172,8.64697793,2118.1,2117.3,0.54588138]
[1772690866378,0.53697793,2118.1,2117.5,0.54588138]
[1772690866571,0.53697793,2118.1,2117.5,0.00357407]
[1772690866786,0.53143356,2117.9,2117.5,0.00357407]
[1772690867275,0.53143356,2117.9,2117.3,0.54588138]
[1772690867478,0.53143356,2117.9,2117.0,0.54588138]
[1772690868277,0.53143356,2117.9,2117.0,0.55086185]
[1772690869476,0.52836037,2117.7,2117.0,0.55086185]
[1772690870784,0.52836037,2117.9,2117.2,0.5647165]
[1772690870979,0.52836037,2117.9,2117.4,0.5647165]
[1772690871178,8.123,2118.0,2117.4,0.5647165]
[1772690871378,8.65136037,2118.0,2117.4,0.5647165]
[1772690871885,0.52836037,2117.9,2117.4,0.5647165]
[1772690872279,8.123,2118.0,2117.4,0.5647165]
[1772690874778,8.123,2118.0,2117.6,0.5647165]
[1772690874979,0.53390474,2118.1,2117.6,0.5647165]
[1772690876588,0.00554437,2118.1,2117.6,0.5647165]
[1772690876983,0.52836037,2118.2,2117.6,0.5647165]
[1772690878088,0.00533747,2118.2,2117.6,0.5647165]
[1772690878790,0.53369784,2118.2,2117.6,0.5647165]
[1772690878987,8.67336037,2118.4,2117.8,0.5647165]
[1772690879191,8.145,2118.4,2117.8,0.5647165]
[1772690879698,8.67336037,2118.4,2117.8,0.5647165]
[1772690879884,8.145,2118.4,2117.8,0.5647165]
[1772690880085,8.14930882,2118.4,2117.8,0.5647165]
[1772690880289,8.67766919,2118.4,2117.8,0.5647165]
[1772690880987,0.52836037,2118.3,2117.8,0.5647165]
[1772690886497,0.52836037,2118.3,2117.7,0.23604]
[1772690886890,0.52836037,2118.3,2117.6,0.5647165]
[1772690887193,0.52836037,2118.3,2117.5,0.5647165]
[1772690890994,0.52836037,2118.3,2117.3,0.5647165]
[1772690891195,0.52836037,2118.1,2117.3,0.5647165]
[1772690891793,0.52836037,2118.1,2117.2,0.23609]
[1772690892197,3.91274339,2118.3,2117.2,0.23609]
[1772690892198,0.52836037,2117.9,2117.2,0.23609]
[1772690892399,0.52836037,2117.7,2117.2,0.23609]
[1772690892702,0.52836037,2117.7,2117.2,0.8008065]
[1772690893491,0.52836037,2117.7,2117.3,0.5647165]
[1772690894001,8.152,2117.8,2117.3,0.5647165]
[1772690894002,8.68036037,2117.8,2117.3,0.5647165]
[1772690895099,0.52836037,2117.7,2117.3,0.5647165]
[1772690895797,0.52836037,2117.7,2117.0,0.56969697]
[1772690896098,0.52836037,2117.7,2117.0,0.00498047]
[1772690897005,0.52836037,2117.7,2117.0,0.56969697]
[1772690898302,0.52836037,2117.7,2117.0,0.00498047]
[1772690900709,0.52836037,2117.7,2116.7,0.80339044]
[1772690901102,0.52836037,2117.7,2116.4,0.56724044]
[1772690901411,0.56213372,2117.5,2116.4,0.56724044]
[1772690901806,0.56213372,2117.5,2116.4,0.57279316]
[1772690902209,5.50256819,2117.4,2116.4,0.00555272]
[1772690902511,0.56213372,2117.2,2116.4,0.00555272]
[1772690905807,0.56213372,2117.2,2116.2,0.2362]
[1772690906015,0.56213372,2117.0,2116.2,0.2362]
[1772690906214,0.56213372,2117.0,2116.0,0.56724044]
[1772690906414,0.56213372,2117.0,2115.9,0.56724044]
[1772690906810,0.56213372,2117.0,2115.9,0.00401661]
[1772690907016,0.56481262,2116.8,2115.9,0.00401661]
[1772690907316,0.56481262,2116.8,2115.6,0.56706678]
[1772690907317,0.56481262,2116.6,2115.3,0.56706678]
[1772690907511,0.56481262,2116.4,2115.2,0.23634]
[1772690907712,0.56481262,2116.2,2115.1,0.56706678]
[1772690907912,0.56481262,2116.0,2114.7,0.56706678]
[1772690908217,0.56481262,2115.8,2114.7,0.57160883]
[1772690908422,0.56481262,2115.6,2114.7,0.00454205]
[1772690908608,0.56481262,2115.4,2114.7,0.00454205]
[1772690908812,0.56481262,2115.2,2114.7,0.00454205]
[1772690909013,0.57055876,2115.2,2114.7,0.00454205]
[1772690909222,0.57055876,2115.2,2114.3,0.56706678]
[1772690910117,0.57055876,2115.2,2114.3,0.0053541]
[1772690911116,0.57055876,2115.2,2113.5,0.56706678]
[1772690911317,0.56481262,2115.1,2113.5,0.56706678]
[1772690912116,0.56481262,2115.1,2113.5,0.57074591]
[1772690913317,0.56481262,2115.1,2113.5,0.00367913]
[1772690914122,0.56481262,2114.9,2113.5,0.00367913]
[1772690914324,2.65467256,2115.2,2113.5,0.00367913]
[1772690914325,0.56481262,2114.6,2113.5,0.00367913]
[1772690914513,2.64892642,2114.7,2113.1,0.56706678]
[1772690914514,0.56481262,2114.4,2113.1,0.56706678]
[1772690915624,0.56481262,2114.4,2113.1,0.00353473]
[1772690915824,0.56481262,2114.4,2113.1,0.57060151]
[1772690917621,0.56481262,2114.4,2113.3,0.56706678]
[1772690917825,0.56481262,2114.4,2113.5,0.56706678]
[1772690918925,0.56481262,2114.4,2113.3,0.56706678]
[1772690919727,0.56481262,2114.4,2113.1,0.57060151]
[1772690919928,0.56481262,2114.4,2112.5,0.56706678]
[1772690920227,0.56481262,2114.4,2112.9,0.56706678]
[1772690920726,0.56481262,2114.4,2113.0,0.23659]
[1772690921029,0.56481262,2114.2,2113.1,0.56706678]